Cogmind - Beta 14 *** ADVENTURER MODE // 2024.08.17 @ 00:53:29 Player: Bob Result: Self-destructed Performance ------------- Evolutions (2) 1000 Regions Visited (5) 1000 Robots Destroyed (35) 175 Value Destroyed (726) 726 Prototype IDs (4) 80 Alien Tech Used (0) 0 Bonus (73) 73 TOTAL SCORE: 3054 Bonus ------- Follower Combat Kills 73 Cogmind --------- Core Integrity 387/550 Matter 253/300 Energy 280/280 System Corruption 0% Temperature Cool (0) Movement Core (350) Ox6 Location -8/Materials Parts ------- > --- POWER (1) -------- Heavy Ion Engine > --- PROPULSION (4) --- (None) > --- UTILITY (4) ------ Medium Storage Unit Signal Interpreter > --- WEAPON (2) ------- Light Assault Rifle > --- INVENTORY (10) --- Light Deuterium Engine Improved Heat Sink Advanced Weight Redist. System Experimental Sensor Array Improved Terrain Scan Processor Improved Targeting Computer ECM Suite Improved Light Armor Plating Peak State ------------ > --- POWER ------------ Heavy Ion Engine > --- PROPULSION ------- Airjet Aerolev Unit > --- UTILITY ---------- Medium Storage Unit Signal Interpreter > --- WEAPON ----------- Heavy Battle Rifle > --- INVENTORY -------- Improved Heat Sink Advanced Weight Redist. System Experimental Sensor Array Improved Terrain Scan Processor Improved Targeting Computer ECM Suite Light Assault Rifle [Rating: 18] Favorites ----------- Power Light Nuclear Core Engine Ion Engine Power Core Light Nuclear Core Propulsion Aluminum Leg Leg Aluminum Leg Wheel Wheel Hover Unit Hover Unit Utility Medium Storage Unit Device Seismic Detector Storage Medium Storage Unit Processor Signal Interpreter Protection Light Armor Plating Weapon Light Assault Rifle Ballistic Gun Light Assault Rifle Build | -11 -10 -10 -10 -9 -8 ------- Run | Yrd Mat Min Exi Min Mat Slots Evolved 4 | . . . . . 4 Power . | . . . . . . Propulsion 2 | . . . . . 2 Utility 2 | . . . . . 2 Weapon . | . . . . . . Parts Attached 33 | 6 8 5 1 2 11 Power 4 | 1 1 . . . 2 Engine 3 | 1 . . . . 2 Core 1 | . 1 . . . . Reactor . | . . . . . . Propulsion 12 | 2 4 1 . . 5 Treads . | . . . . . . Leg 5 | . 2 1 . . 2 Wheel 2 | 2 . . . . . Hover 5 | . 2 . . . 3 Flight . | . . . . . . Utility 7 | 1 1 2 1 . 2 Device 2 | . 1 . . . 1 Storage 3 | 1 . 1 1 . . Processor 1 | . . 1 . . . Hackware . | . . . . . . Protection 1 | . . . . . 1 Artifact . | . . . . . . Weapon 10 | 2 2 2 . 2 2 Energy Gun . | . . . . . . Energy Cannon . | . . . . . . Ballistic Gun 10 | 2 2 2 . 2 2 Ballistic Cannon . | . . . . . . Launcher . | . . . . . . Special Weapon . | . . . . . . Impact Weapon . | . . . . . . Slashing Weapon . | . . . . . . Piercing Weapon . | . . . . . . Special Melee Weapon . | . . . . . . Unidentified Prototypes 2 | . . . . . 2 Parts Lost 12 | . 1 . . . 11 Power 2 | . . . . . 2 Propulsion 5 | . 1 . . . 4 Utility 2 | . . . . . 2 Weapon 3 | . . . . . 3 Highest Loss Streak 3 | . 1 . . . 3 To Critical Strikes . | . . . . . . Average Slot Usage (%) 90 | . 91 96 100 100 64 Engine 1 | . 3 . . . 4 Core 10 | . 10 14 14 14 1 Leg 20 | . 10 28 28 28 11 Wheel 2 | . 7 . . . . Hover 3 | . 10 . . . 5 Device 2 | . 6 . . . 4 Storage 13 | . 14 14 14 14 9 Processor 8 | . . 10 14 14 9 Ballistic Gun 25 | . 27 28 28 28 14 Peak Build Rating 18 | 6 9 11 11 11 18 Average Rating 9 | 4 7 9 11 11 12 On Entrance 8 | . 6 9 11 11 11 Naked Turns . | . . . . . . Heaviest Build 23 | 14 15 17 17 17 23 Greatest Support 30 | 20 20 20 20 20 30 Greatest Overweight (x) 2 | . 1 . . . 2 Average Overweight (x) . | . . . . . . Largest Inventory Capacity 10 | 8 8 10 10 10 10 Average Capacity 9 | 6 8 9 10 10 10 Most Carried 10 | 2 7 10 10 10 10 Average Carried 7 | . 3 8 10 10 8 Final Capacity 10 | 8 8 10 10 10 10 Final Carried 10 | . 7 10 10 10 8 Class Distribution -------------------- 51% | Scavenger-Mutant 48% | Mutant Dominant Class ---------------- Mutant | -10/Materials Mutant | -10/Mines Scavenger-Mutant | -10/Exiles Scavenger-Mutant | -9/Mines Scavenger-Mutant | -8/Materials Resources | -11 -10 -10 -10 -9 -8 ----------- Run | Yrd Mat Min Exi Min Mat Matter Collected 840 | 229 293 82 . 54 182 Remotely . | . . . . . . Salvage Created 923 | . 361 93 . 85 384 Parts 61 | . 22 10 . 9 20 Haulers Intercepted 1 | . 1 . . . . Recyclers Shooed . | . . . . . . Parts Field Recycled . | . . . . . . Retrieved Matter . | . . . . . . Parts Self-Destructed . | . . . . . . Prevented . | . . . . . . Kills | -11 -10 -10 -10 -9 -8 ------- Run | Yrd Mat Min Exi Min Mat Combat Hostiles Destroyed 32 | . 10 6 . 6 10 Guns 32 | . 10 6 . 6 10 Classes Destroyed 6 | . 4 . . . 2 Hauler 1 | . 1 . . . . Operator 1 | . . . . . 1 Watcher 1 | . 1 . . . . Swarmer 21 | . 6 6 . 6 3 Grunt 9 | . 4 . . . 5 Sentry 2 | . . . . . 2 Best Kill Streak 3 | . 2 3 . 3 3 Combat Bots Only 3 | . 2 3 . 3 3 Max Kills in Single Turn 2 | . 1 1 . 2 1 Gunslinging 1 | . . . . 1 . Exploded . | . . . . . . Melee . | . . . . . . Uniques/NPCs Destroyed . | . . . . . . Combat | -11 -10 -10 -10 -9 -8 -------- Run | Yrd Mat Min Exi Min Mat Hostile Shots Fired 212 | . 44 24 . 21 123 Missed 53 | . 10 4 . 6 33 Damage Taken 1564 | . 305 125 . 109 1025 Core 300 | . 90 23 . 24 163 Absorbed by Shields . | . . . . . . Ignored by Resistances 468 | . 94 40 . 33 301 Core Remaining (%) 72 | 100 . . . 45 . Volleys Fired 144 | . 42 16 . 12 74 Largest 2 | . 2 2 . 2 2 Hottest 53 | . 40 40 . 40 53 Shots Fired 248 | . 79 32 . 24 113 Gun 248 | . 79 32 . 24 113 Cannon . | . . . . . . Launcher . | . . . . . . Special . | . . . . . . Kinetic 248 | . 79 32 . 24 113 Thermal . | . . . . . . Explosive . | . . . . . . Electromagnetic . | . . . . . . Robot Hit Streak 13 | . 8 10 . 7 13 Robot Miss Streak 4 | . 4 1 . 2 2 Penetration Max . | . . . . . . Secondary Targets 4 | . . 1 . 2 1 Max Gunslinging Chain 1 | . . 1 . 1 1 Shots Hit Robots 190 | . 52 25 . 18 95 Core Hits 71 | . 21 9 . 8 33 Critical Kills 1 | . . . . . 1 Critical Parts Destroyed 3 | . 2 1 . . . Critical Strikes 4 | . 2 1 . . 1 Destroy 4 | . 2 1 . . 1 Melee Attacks . | . . . . . . Impact . | . . . . . . Slashing . | . . . . . . Piercing . | . . . . . . Sneak Attacks . | . . . . . . Combat Hostiles . | . . . . . . Follow-up Attacks . | . . . . . . Damage Inflicted 2038 | . 581 213 . 143 1101 Guns 2038 | . 581 213 . 143 1101 Cannons . | . . . . . . Explosions . | . . . . . . Melee . | . . . . . . Ramming . | . . . . . . Kinetic 2038 | . 581 213 . 143 1101 Thermal . | . . . . . . Explosive . | . . . . . . Electromagnetic . | . . . . . . Impact . | . . . . . . Slashing . | . . . . . . Piercing . | . . . . . . Highest Corruption . | . . . . . . Average Corruption . | . . . . . . Corruption Purged . | . . . . . . Corruption Blocked . | . . . . . . Overload Shots . | . . . . . . Overflow Damage . | . . . . . . Projectiles . | . . . . . . Explosions . | . . . . . . Melee . | . . . . . . Knockbacks . | . . . . . . Impact . | . . . . . . Kinetic . | . . . . . . Secondary . | . . . . . . Self-Inflicted Damage . | . . . . . . Shots . | . . . . . . Rammed . | . . . . . . Targets Rammed . | . . . . . . Kicked . | . . . . . . Crushed . | . . . . . . Highest Temperature 33 | . 22 8 . 8 33 Average Temperature 6 | . 8 4 . 4 8 Received Heat Transfer 795 | . 90 . . 9 696 Siege Activations . | . . . . . . Robots Corrupted . | . . . . . . Combat Hostiles . | . . . . . . Parts Fried . | . . . . . . Impact Corruptions . | . . . . . . Robots Melted . | . . . . . . Combat Hostiles . | . . . . . . Parts Melted . | . . . . . . Heat Transferred . | . . . . . . Parts Sabotaged . | . . . . . . Parts Stolen . | . . . . . . Parts Stripped . | . . . . . . Power Chain Reactions . | . . . . . . Alert | -11 -10 -10 -10 -9 -8 ------- Run | Yrd Mat Min Exi Min Mat Peak Influence 281 | . 169 70 . 226 281 Initial 74 | . . . . . 74 Average 87 | . 97 33 . 139 132 Maximum Alert Level 1 | . . . . 1 1 Low Security (%) 90 | 100 100 100 . 59 74 Level 1 9 | . . . . 40 25 Level 2 . | . . . . . . Level 3 . | . . . . . . Level 4 . | . . . . . . Level 5 . | . . . . . . High Security . | . . . . . . Max Security . | . . . . . . Squads Dispatched 2 | . . 1 . . 1 Investigation 1 | . . 1 . . . Extermination . | . . . . . . Reinforcement 1 | . . . . . 1 Assault . | . . . . . . Garrison . | . . . . . . Intercept . | . . . . . . Searches Triggered . | . . . . . . Construction Impeded . | . . . . . . Haulers Reinforced . | . . . . . . Active Scanning Responses . | . . . . . . Cargo Convoy Interrupts . | . . . . . . Stealth | -11 -10 -10 -10 -9 -8 --------- Run | Yrd Mat Min Exi Min Mat Distress Signals 6 | . 2 . . . 4 Communications Jammed . | . . . . . . Distress Signals . | . . . . . . Times Spotted 53 | . 16 6 . 9 22 Peak Tracking Total 6 | . 4 3 . 4 6 Tactical Retreats 5 | . 2 . . . 3 Traps | -11 -10 -10 -10 -9 -8 ------- Run | Yrd Mat Min Exi Min Mat Traps Triggered 1 | . 1 . . . . Indirectly . | . . . . . . Trap Hack Attempts . | . . . . . . Triggered . | . . . . . . Disarmed . | . . . . . . Reprogrammed . | . . . . . . Reused . | . . . . . . Traps Extracted . | . . . . . . Installed . | . . . . . . Triggered . | . . . . . . Machines | -11 -10 -10 -10 -9 -8 ---------- Run | Yrd Mat Min Exi Min Mat Machines Disabled . | . . . . . . Max in Single Turn . | . . . . . . Machines Repaired . | . . . . . . Machines Dismantled . | . . . . . . Machines Sabotaged . | . . . . . . Overloaded Fab Kills . | . . . . . . Hacking | -11 -10 -10 -10 -9 -8 --------- Run | Yrd Mat Min Exi Min Mat Machines Accessed 5 | . 1 2 . . 2 Terminals 4 | . 1 1 . . 2 Fabricators . | . . . . . . Repair Stations . | . . . . . . Recycling Units . | . . . . . . Scanalyzers . | . . . . . . Garrison Access . | . . . . . . Total Hacks 8 | . 1 3 . . 4 Successful 6 | . 1 2 . . 3 Failed 2 | . . 1 . . 1 Catastrophic . | . . . . . . Database Lockouts . | . . . . . . Manual . | . . . . . . Terminals 7 | . 1 2 . . 4 Fabricators . | . . . . . . Repair Stations . | . . . . . . Recycling Units . | . . . . . . Scanalyzers . | . . . . . . Garrison Access . | . . . . . . Terminal Hacks 6 | . 1 2 . . 3 Prototype ID Bank 1 | . . . . . 1 Open Door 1 | . . 1 . . . Emergency Access Points 1 | . . . . . 1 Investigation Status 1 | . . 1 . . . Hauler Manifests 1 | . 1 . . . . Registered Components 1 | . . . . . 1 Fabricator Hacks . | . . . . . . Repair Station Hacks . | . . . . . . Recycling Unit Hacks . | . . . . . . Scanalyzer . | . . . . . . Garrison Access Hacks . | . . . . . . Unauthorized Hacks . | . . . . . . Terminals . | . . . . . . Fabricators . | . . . . . . Repair Stations . | . . . . . . Recycling Units . | . . . . . . Scanalyzers . | . . . . . . Garrison Access . | . . . . . . Data Cores Recovered . | . . . . . . Used . | . . . . . . Hacking Detections 1 | . . . . . 1 Full Trace Events . | . . . . . . Feedback Events . | . . . . . . Feedback Blocked . | . . . . . . Robot Schematics Acquired . | . . . . . . Robots Built . | . . . . . . Authchips . | . . . . . . Time . | . . . . . . Total Robot Build Rating . | . . . . . . Part Schematics Acquired . | . . . . . . Parts Built . | . . . . . . Authchips . | . . . . . . Time . | . . . . . . Total Part Build Rating . | . . . . . . Parts Repaired . | . . . . . . Time . | . . . . . . Parts Recycled . | . . . . . . Recycled Matter . | . . . . . . Retrieved Matter . | . . . . . . Retrieved Components . | . . . . . . Parts Scanalyzed . | . . . . . . Part Schematics Acquired . | . . . . . . Parts Damaged . | . . . . . . Bothacking | -11 -10 -10 -10 -9 -8 ------------ Run | Yrd Mat Min Exi Min Mat Used RIF Installer . | . . . . . . Robots Hacked . | . . . . . . Non-combat . | . . . . . . Combat . | . . . . . . Robot Hacks Applied . | . . . . . . Relay Couplers Released . | . . . . . . Fabnet Peak Effective % . | . . . . . . Robots Rewired . | . . . . . . Allies Hacked . | . . . . . . Hacks Repelled . | . . . . . . Allies | -11 -10 -10 -10 -9 -8 -------- Run | Yrd Mat Min Exi Min Mat Total Allies 2 | . . . . 2 . Largest Group 2 | . . . . 2 2 Highest-Rated Group 49 | . . . . 49 49 Highest-Rated Ally 31 | . . . . 31 31 Total Orders . | . . . . . . Ally Attacks 13 | . . . . 8 5 Total Damage 211 | . . . . 148 63 Kills 3 | . . . . 3 . Allies Corrupted . | . . . . . . Allies Melted . | . . . . . . Intel | -11 -10 -10 -10 -9 -8 ------- Run | Yrd Mat Min Exi Min Mat Robot Analysis Total . | . . . . . . Derelict Logs Recovered 2 | . . 2 . . . Drone Launches . | . . . . . . Drone Recoveries . | . . . . . . Exploration | -11 -10 -10 -10 -9 -8 ------------- Run | Yrd Mat Min Exi Min Mat Turns Passed 3298 | 49 955 859 573 340 522 Spaces Moved 2433 | 48 788 666 477 210 244 Core 5 | 5 . . . . . Treads . | . . . . . . Legs 1779 | . 290 666 477 210 136 Wheels 272 | 43 229 . . . . Hover 377 | . 269 . . . 108 Flight . | . . . . . . Fastest Speed 50 | 50 56 120 120 120 116 Average Speed 113 | 76 99 120 120 120 133 Slowest Speed 260 | 80 190 120 120 120 260 Overloaded Moves . | . . . . . . Propulsion Burnouts . | . . . . . . Robots Hopped . | . . . . . . Cave-ins Triggered . | . . . . . . Exploration Rate (%) 54 | 3 97 94 89 25 18 Regions Visited 5 Branch Regions 3 Pre-discovered Areas . | . . . . . . Known Exits Taken 3 | . . 1 1 1 . Unknown Exits Taken 2 | 1 1 . . . . Scrap Searched 2 | . . 2 . . . Spaces Dug . | . . . . . . Terrain Destroyed 3 | . . . . . 3 Melee . | . . . . . . Projectile 3 | . . . . . 3 AOE . | . . . . . . Terrain Rammed . | . . . . . . Walls Destroyed . | . . . . . . Machines Disabled . | . . . . . . Actions | -11 -10 -10 -10 -9 -8 --------- Run | Yrd Mat Min Exi Min Mat Total 2750 | 59 888 700 478 280 345 Wait 88 | . 27 3 . 55 3 Move 2428 | 47 787 665 476 209 244 Hop . | . . . . . . Pick Up 38 | 6 16 7 . . 9 Fast Attach 2 | . . 1 . . 1 Attach 22 | 6 5 1 . . 10 Detach . | . . . . . . Swap 9 | . 3 3 1 2 . Drop 19 | . 8 4 1 2 4 Fire 144 | . 42 16 . 12 74 Melee . | . . . . . . Ram . | . . . . . . Kick . | . . . . . . Crush . | . . . . . . Escape Stasis . | . . . . . . Rewire . | . . . . . . Trap . | . . . . . . Miscellaneous . | . . . . . . Route ------- -11/Scrapyard -10/Materials (discovered 4 exits: *Mat x3 / *Min) -10/Mines (discovered 3 exits: *Mat x2 / *Exi) -10/Exiles (discovered 2 exits: *Min x2) -9/Mines -8/Materials (discovered 1 exit: [*Sto]) History --------- Turn | Location | Event 15 | -11/Scrapyard | Discovered new exit (range 16) 50 | -11/Scrapyard | Entered Materials 301 | -10/Materials | Build established: Mutant 506 | -10/Materials | Discovered new exit (range 10) 685 | -10/Materials | Discovered new exit (range 14) 856 | -10/Materials | Discovered new exit (range 9) 945 | -10/Materials | Discovered new exit (range 5) 1005 | -10/Materials | Entered Mines 1060 | -10/Mines | Learned Materials emergency access door positions 1085 | -10/Mines | YI-UF0 nonchalantly dropped a Grenade Launcher on the ground 1186 | -10/Mines | A weapon hastily lodged in a ceiling crevice suddenly fell to the ground 1213 | -10/Mines | Discovered new exit (range 8) 1232 | -10/Mines | Identified exit to Materials 1280 | -10/Mines | Discovered exit to Materials (range 9) 1418 | -10/Mines | Met a Derelict shopkeep closing up shop 1718 | -10/Mines | Identified exit to Exiles 1759 | -10/Mines | Found a damaged Exp. Sensor Array with a note attached 1763 | -10/Mines | Found Prototype Device 1857 | -10/Mines | Deemed a non-threat by the Exiles lab entrance 1864 | -10/Mines | Entered Exiles 1865 | -10/Exiles | Build established: Scavenger-Mutant 1885 | -10/Exiles | Discovered new exit (range 15) 1900 | -10/Exiles | Identified exit to Mines 1927 | -10/Exiles | Met 8R-AWN 1942 | -10/Exiles | Met EX-HEX 2005 | -10/Exiles | Met EX-DEC 2067 | -10/Exiles | Met EX-BIN 2201 | -10/Exiles | Visited The Gauntlet 2370 | -10/Exiles | Discovered exit to Mines (range 14) 2437 | -10/Exiles | Entered Mines 2625 | -9/Mines | Discovered new exit (range 8) 2633 | -9/Mines | Core integrity fell below 50% 2653 | -9/Mines | Identified exit to Materials 2777 | -9/Mines | Entered Materials 2777 | -8/Materials | Accompanied by 2 allies 2777 | -8/Materials | Evolved 4 slots: Propulsion x2, Utility x2 2782 | -8/Materials | Led the pair of lost Derelicts to an unsafe place 2959 | -8/Materials | Lost 3 parts (2p1n) 3120 | -8/Materials | Lost 3 parts (1u2w) 3169 | -8/Materials | Discovered new exit (range 13) 3299 | -8/Materials | Self-destructed Last Messages --------------- 03178_ Destroyed Imp. Datajack. 03183_ Destroyed Imp. Hover Unit. 03188_ ALERT: Hostiles spotted, dispatching reinforcements to Terminal M009. 03203_ K-01 Serf collects debris. 03204_ U-05 Engineer lays Concrete. 03214_ K-01 Serf collects debris. 03252_ Acquired Imp. Light Armor Plating. 03254_ O-24 Administrator destroyed. 03256_ Acquired 18 matter. 03259_ Acquired Lgt. Deuterium Engine. 03262_ Airjet destroyed. 03266_ Critical hit (Burn: +37). 03267_ W-25 Informer distress signal alerts nearby ally. 03268_ Hvy. Battle Rifle destroyed. 03270_ Airjet destroyed. 03278_ Processing Tank disabled. 03280_ Critical hit (Burn: +37). 03297_ G-47 Trooper destroyed. Map ----- +----------------------------------------------------+ | ??#!! ##???????????????????????????????????? | | ??#!! "#???????????????????????????????????? | | ??##### ##???????????????????????????????????? | | ??????# #????????????????????????????????????? | | ####### #????????????????????????????????????? | | # # #????????????????????????????????????? | | # + #????????????????????????????????????? | | # # #????????????!???????????????????????? | | # # ###########??????????????????????????? | | # # # #??????????????????????????? | | # # # """"" #??????????????????????????? | | # # # ""T"" #??????????????????????????? | | # + # #??????????????????????????? | | # # + """ """ #??????????????????????????? | | # # # """ """ #??????????????????????????? | | # # # """ """ #??????????????????????????? | | # / + #??????????????+???????????? | | ??###### #########/###????????????????????????? | | ???????# ## #????????????????????????? | | ???????# ## #######+#????????????????? | | ???????# ## """ # ????????????????? | | ?#######+## "T" ## """"" ????????????????? | | ?# [[ ![ # ## """"" #???????????????? | | #" [[ *# ## """"" #???????????????? | | #" [ #* ## #???????????????? | | " % # #@! """" #???????????????? | | #" =#% %+! """"" #???????????????? | | " #= """ =# """"" ????????????????? | | " + """"" # #???????????????? | | " # """"" ##########???????????????? | | #" # """"" #????????????????????????? | | #""""""#### """ #????????????????????????? | | ######" #????????????????????????? | | ?????## #????????????????????????? | | ??????# % #????????????????????????? | | ########### % ########????????????????????????? | | # T # #???????????????????????????????? | | # # #???????????????????????????????? | | # """"""" # ################## ?????????????? | | # """"""" # ????????????? | | # """"""" / ????????????? | | # """"""" # ????????????? | | # """"""" # #############???????????????????? | | # # #???????????????????????????????? | | ######+#### #???????????????????????????????? | | ?????# #??# #???????????????????????????????? | | ######+#### #???????????????????????????????? | | # % ## #???????????????????????????????? | | # """"" ## ##??????????????????????????????? | | # %""""" # ######/#####???????????????????? | +----------------------------------------------------+ Best States ------------- Heat Dissipation 31 Energy Generation 14 Energy Capacity 280 Matter Stores 300 Matter Capacity 300 Sight Range 16 Robot Scan Range 14 Terrain Scan Density 10 Armor Coverage 150 Resistance: KI 20 Resistance: TH 20 Resistance: EX 20 Resistance: EM 20 Resistance: I 20 Resistance: S 20 Resistance: P 20 Evasion (%) 55 Offensive Hacking 10 Item Schematics ----------------- None Robot Schematics ------------------ None Fabricated ------------ Nothing Alien Tech Used ----------------- None Achievements -------------- None Challenges ------------ None Game ------ Seed PlasmaGrenadeDatajack Manual? 0 Play Time 00:23:30 Cumulative 200.4 hours Start 2024.08.17 @ 00:34:41 End 2024.08.17 @ 00:53:29 Sessions 1 Manual Loads 0 Difficulty Adventurer Special Mode None Game No. 299 Rogue 241 Adventurer 58 Explorer 0 Win Type - Total 5 Types 2/1/0/2/0/0/0/0/0 Lore% 31 Gallery% 58 Achievement% 54 Wizard Run 0 Options --------- Layout 1 ASCII 0 Keyboard 0 Movement Arrows Keybinds 0 Fullscreen 1 Font 16/SmallcapsGlow Map View 55x38 Zoom Use 0% Tactical HUD 1 Map Filters NONE Filters NONE Steam 1 RUN: a67cc3bb-56f2-4515-af82-2723f13dfeae